bitfinex-derivatives/quotes_SOLF0:USTF0_20241127
["timestamp","ask_amount","ask_price","bid_price","bid_amount"]
[1732728193423,16.89670773,238.86,238.84,2.0922]
[1732728193622,2.092,238.88,238.84,2.0922]
[1732728193623,16.89670773,238.85,238.84,2.0922]
[1732728194428,16.89670773,238.85,238.83,2.0923]
[1732728194630,9.28632322,238.85,238.83,2.0923]
[1732728194825,16.89425472,238.84,238.83,2.0923]
[1732728195030,9.28632322,238.84,238.83,2.0923]
[1732728196233,16.8952316,238.84,238.8,2.0925]
[1732728196530,16.89654745,238.83,238.8,2.0925]
[1732728196734,16.89654745,238.82,238.8,2.0925]
[1732728197042,9.28632322,238.81,238.78,2.36]
[1732728197331,9.28632322,238.8,238.78,2.36]
[1732728197527,2.0923,238.84,238.79,2.0927]
[1732728197731,2.0925,238.81,238.64,32.66]
[1732728197932,16.90126691,238.8,238.74,6.48748375]
[1732728198236,16.90126691,238.79,238.77,2.0928]
[1732728198526,9.28880796,238.78,238.77,2.0928]
[1732728198728,7.61287654,238.78,238.77,2.0928]
[1732728199237,16.9016845,238.78,238.77,2.0928]
[1732728199631,16.9016845,238.78,238.72,2.36]
[1732728199845,6.48748375,238.81,238.72,8.84748375]
[1732728199846,16.9016845,238.77,238.72,8.84748375]
[1732728200135,9.28880796,238.76,238.72,8.84748375]
[1732728200334,8.58008375,238.81,238.75,2.093]
[1732728200534,16.89704098,238.8,238.75,2.093]
[1732728200737,16.89704098,238.79,238.72,8.84748375]
[1732728200938,16.89704098,238.78,238.74,6.48748375]
[1732728201138,16.89704098,238.77,238.74,6.48748375]
[1732728201338,9.28653679,238.76,238.74,6.48748375]
[1732728201534,9.28653679,238.75,238.74,8.58058375]
[1732728201740,9.28653679,238.79,238.74,6.48748375]
[1732728202040,16.89796206,238.78,238.74,6.48748375]
[1732728202234,16.89796206,238.77,238.74,6.48748375]
[1732728202442,4.8046,238.89,238.76,6.48748375]
[1732728202636,4.8046,238.89,238.78,6.48748375]
[1732728202637,6.48748375,238.86,238.78,6.48748375]
[1732728202836,17.18564283,238.85,238.78,6.48748375]
[1732728203036,17.18564283,238.84,238.78,6.48748375]
[1732728203238,17.18564283,238.83,238.78,6.48748375]
[1732728203541,17.18564283,238.82,238.78,6.48748375]
[1732728203737,17.18564283,238.81,238.78,2.0928]
[1732728203931,17.18564283,238.8,238.78,2.0928]
[1732728204134,17.18564283,238.79,238.78,2.0928]
[1732728204636,9.5723483,238.79,238.78,2.0928]
[1732728205238,17.18214853,238.79,238.78,2.0928]
[1732728205637,9.5723483,238.79,238.78,2.0928]
[1732728206442,9.5723483,238.79,238.78,8.58028375]
[1732728206842,17.18476837,238.79,238.78,2.0928]
[1732728207038,9.5723483,238.79,238.78,2.0928]
[1732728208438,17.19341156,238.79,238.78,2.0928]
[1732728208640,9.5723483,238.79,238.78,2.0928]
[1732728209042,9.5723483,238.79,238.78,8.58028375]
[1732728209234,9.5723483,238.79,238.78,10.94028375]
[1732728209439,6.48748375,238.91,238.78,8.84748375]
[1732728209636,9.71486245,238.89,238.83,6.48748375]
[1732728209838,7.62296245,238.88,238.83,6.48748375]
[1732728210035,7.62296245,238.87,238.83,6.48748375]
[1732728210240,7.62296245,238.86,238.83,6.48748375]
[1732728210436,6.48748375,238.92,238.83,6.48748375]
[1732728210636,2.0917,238.9,238.83,6.48748375]
[1732728210845,7.6260158,238.89,238.85,2.0922]
[1732728211045,7.6260158,238.88,238.85,2.0922]
[1732728211440,7.6260158,238.87,238.85,2.0922]
[1732728211641,7.6260158,238.86,238.85,2.0922]
[1732728212245,2.0917,238.9,238.85,2.0922]
[1732728212547,7.62671872,238.89,238.85,2.0922]
[1732728212741,7.62671872,238.88,238.85,2.0922]
[1732728212938,7.62671872,238.87,238.85,2.0922]
[1732728213140,7.62671872,238.86,238.85,2.0922]
[1732728214348,2.0917,238.9,238.86,2.0921]
[1732728214547,7.62618427,238.89,238.83,6.48748375]
[1732728214753,7.62618427,238.88,238.83,6.48748375]
[1732728214942,7.62618427,238.87,238.83,6.48748375]
[1732728215148,2.0917,238.9,238.83,6.48748375]
[1732728215345,7.62613509,238.89,238.83,6.48748375]
[1732728215647,7.62613509,238.88,238.85,6.48748375]
[1732728215854,6.48748375,238.94,238.85,6.48748375]
[1732728215855,7.62613509,238.87,238.85,6.48748375]
[1732728216151,7.62613509,238.86,238.85,6.48748375]
[1732728216347,2.0916,238.91,238.86,2.0921]
[1732728216547,7.63309473,238.9,238.86,2.0921]
[1732728216741,7.63309473,238.89,238.86,2.0921]
[1732728216944,7.63309473,238.88,238.87,6.48748375]
[1732728217149,7.63309473,238.94,238.87,6.48748375]
[1732728217348,7.63309473,238.93,238.87,6.48748375]
[1732728217549,7.63309473,238.92,238.87,2.092]
[1732728217750,7.63309473,238.91,238.87,2.092]
[1732728217945,7.63309473,238.9,238.87,2.092]
[1732728218349,7.63309473,238.89,238.87,2.092]
[1732728218542,7.63309473,238.88,238.87,2.092]
[1732728219148,7.63309473,238.88,238.81,2.36]
[1732728219348,9.22966402,238.87,238.85,6.48748375]
[1732728219550,9.22966402,238.86,238.85,6.48748375]
[1732728219754,6.48748375,238.93,238.87,2.092]
[1732728219952,16.85814677,238.92,238.87,2.092]
[1732728220169,16.85814677,238.91,238.87,2.092]
[1732728220348,16.85814677,238.9,238.87,2.092]
[1732728220546,16.85814677,238.89,238.87,8.57948375]
[1732728220747,9.22851528,238.88,238.87,8.84748375]
[1732728220955,475.8784711,239.13,238.87,8.84748375]
[1732728220956,2.36,239.04,238.87,8.84748375]
[1732728221168,2.0908,239.01,238.93,6.48748375]
[1732728221352,2.36,239.04,238.93,2.36]
[1732728221353,16.85938617,238.96,238.93,2.36]
[1732728221559,7.63004751,238.95,238.93,2.36]
[1732728221752,9.22933866,238.95,238.93,2.36]
[1732728222050,6.48748375,239.0,238.93,2.36]
[1732728222051,16.85049334,238.94,238.93,2.36]
[1732728223248,9.22933866,238.94,238.93,4.4515]
[1732728223447,16.75522272,238.94,238.93,2.36]
[1732728224553,16.75522272,238.94,238.93,4.4515]
[1732728224952,0.56802,238.97,238.93,4.4515]
[1732728225353,0.56802,238.97,238.95,2.0912]
[1732728225554,7.52670442,238.96,238.93,8.84748375]
[1732728225759,7.52670442,238.95,238.93,8.84748375]
[1732728226057,9.21102153,238.94,238.93,10.93898375]
[1732728226558,0.56802,238.97,238.96,2.0912]
[1732728226859,8.08823242,238.97,238.96,2.0912]
[1732728227154,17.29245821,238.97,238.93,2.36]
[1732728227460,16.72273457,238.96,238.93,2.36]
[1732728227657,0.56802,238.97,238.93,2.36]
[1732728227658,9.20422579,238.95,238.93,2.36]
[1732728227961,9.20422579,238.94,238.93,4.4515]
[1732728228260,9.20422579,238.94,238.93,10.93898375]
[1732728229957,8.57828375,239.01,238.95,2.0912]
[1732728230354,6.48748375,239.01,238.93,8.84748375]
[1732728230554,6.48748375,239.03,238.93,8.84748375]
[1732728230756,9.2053278,239.0,238.95,6.48748375]
[1732728231357,9.2053278,239.0,238.97,2.091]
[1732728231759,16.72836495,239.02,238.97,2.091]
[1732728232056,9.2053278,238.99,238.97,2.091]
[1732728232260,9.2053278,239.0,238.98,2.091]
[1732728233163,9.2053278,239.0,238.97,2.0911]
[1732728233652,9.2053278,238.98,238.97,2.0911]
[1732728234757,9.2053278,238.99,238.97,2.0911]
[1732728235067,2.0907,239.02,238.97,2.0911]
[1732728235257,9.2013882,239.01,238.97,2.0911]
[1732728235458,9.2013882,239.0,238.97,2.0911]
[1732728235653,9.2013882,238.99,238.97,2.0911]
[1732728235952,2.0907,239.02,238.98,2.091]
[1732728236155,9.20370346,239.01,238.98,2.091]
[1732728236351,9.20370346,239.0,238.98,2.091]
[1732728236554,2.0907,239.02,238.98,2.091]
[1732728236762,9.20369014,239.01,238.98,2.091]
[1732728236962,9.20369014,239.0,238.98,2.091]
[1732728237161,9.20369014,239.01,238.98,2.091]
[1732728237461,9.20447103,239.0,238.97,2.0911]
[1732728237860,6.48748375,239.01,238.93,2.36]
[1732728238053,11.29638558,239.0,238.96,2.0912]
[1732728238254,6.48748375,238.99,238.91,8.84748375]
[1732728238563,8.57838375,238.99,238.94,2.0913]
[1732728238960,8.57838375,238.99,238.91,8.84748375]
[1732728239154,6.48748375,238.99,238.91,8.84748375]
[1732728239354,6.48748375,238.99,238.95,2.0913]
[1732728239760,2.0909,239.0,238.95,2.0913]
[1732728239958,6.48748375,238.99,238.91,2.36]
[1732728240162,6.48748375,238.99,238.93,2.0914]
[1732728240563,11.29281728,238.98,238.93,2.0914]
[1732728240964,2.0911,238.98,238.93,2.0914]
[1732728241763,2.0911,238.97,238.92,2.0915]
[1732728241964,8.57858375,238.97,238.92,2.0915]
[1732728242170,6.48748375,238.97,238.9,2.36]
[1732728242366,6.48748375,238.97,238.91,2.0916]
[1732728242367,2.0913,238.96,238.91,2.0916]
[1732728242566,6.48748375,238.93,238.81,7.8902]
[1732728242764,6.48748375,238.93,238.85,6.48748375]
[1732728243466,6.48748375,238.95,238.87,6.48748375]
[1732728243661,9.19404583,238.94,238.87,6.48748375]
[1732728243870,6.48748375,238.95,238.87,6.48748375]
[1732728244070,9.1951512,238.94,238.87,6.48748375]
[1732728244266,6.48748375,238.95,238.89,2.0918]
[1732728244467,9.19807391,238.94,238.89,6.48748375]
[1732728244667,2.0912,238.97,238.92,2.0915]
[1732728244870,2.0912,238.97,238.9,2.36]
[1732728244871,9.19848815,238.96,238.9,2.36]
[1732728245073,9.19848815,238.95,238.89,2.36]
[1732728245271,9.19848815,238.94,238.91,2.0916]
[1732728245570,2.0912,238.96,238.91,2.0916]
[1732728245765,9.20166384,238.95,238.91,2.0916]
[1732728245967,11.29306384,238.94,238.89,2.36]
[1732728246373,9.20166384,238.93,238.89,2.36]
[1732728246572,2.0914,238.94,238.89,2.36]
[1732728246765,9.20561998,238.93,238.89,2.36]
[1732728246965,2.0914,238.94,238.89,2.36]
[1732728247170,9.20566899,238.93,238.89,2.36]
[1732728247370,9.20566899,238.92,238.89,2.36]
[1732728247568,2.0914,238.94,238.89,2.36]
[1732728247774,9.20976867,238.93,238.89,2.36]
[1732728247975,9.20976867,238.92,238.9,2.0917]
[1732728248177,2.0914,238.94,238.9,2.0917]
[1732728248474,9.21583824,238.93,238.9,2.0917]
[1732728248676,9.21583824,238.92,238.9,2.0917]
[1732728248872,6.48748375,238.95,238.89,4.4518]
[1732728249067,16.74536188,238.94,238.89,4.4518]
[1732728249269,9.21539536,238.93,238.89,2.36]
[1732728249575,9.21539536,238.92,238.89,4.4518]
[1732728249776,9.21539536,238.91,238.89,4.4518]
[1732728249975,2.0914,238.94,238.89,4.4518]
[1732728250177,9.21792636,238.93,238.89,4.4518]
[1732728250377,9.21792636,238.92,238.89,4.4518]
[1732728250676,9.21792636,238.91,238.89,4.4518]
[1732728250877,2.0914,238.94,238.89,4.4518]
[1732728251074,16.75638822,238.93,238.89,4.4518]
[1732728251279,9.22146546,238.92,238.9,2.0917]
[1732728251468,9.22146546,238.91,238.9,2.0917]
[1732728251673,9.22146546,238.96,238.9,2.0917]
[1732728251872,16.75567402,238.95,238.89,2.36]
[1732728252075,16.75567402,238.94,238.89,2.36]
[1732728252379,16.76244595,238.93,238.92,2.0915]
[1732728254080,9.22146546,238.93,238.89,2.36]
[1732728254279,9.22146546,238.92,238.89,2.36]
[1732728254582,9.22146546,238.91,238.89,2.36]
[1732728254779,2.0915,238.93,238.89,2.36]
[1732728254780,9.22146546,238.9,238.89,2.36]
[1732728255080,9.22146546,238.9,238.88,2.0919]
[1732728255281,9.22146546,238.89,238.88,2.0919]
[1732728255480,9.22146546,238.92,238.88,2.0919]
[1732728255682,9.22146546,238.92,238.85,2.36]
[1732728255683,7.54836337,238.91,238.73,6.26304599]
[1732728255885,16.76931912,238.9,238.82,6.48748375]
[1732728256081,16.76931912,238.89,238.84,6.48748375]
[1732728256274,6.48748375,238.91,238.84,6.48748375]
[1732728256275,9.22146546,238.88,238.84,6.48748375]
[1732728256585,9.22146546,238.9,238.84,6.48748375]
[1732728256882,16.77344556,238.89,238.86,2.092]
[1732728257082,9.22146546,238.88,238.86,2.092]
[1732728257286,9.22146546,238.87,238.86,2.092]
[1732728257976,9.22146546,238.87,238.86,6.48748375]
[1732728258181,9.22146546,238.92,238.86,6.48748375]
[1732728258380,14.92,239.02,238.9,6.48748375]
[1732728258381,16.77728625,238.91,238.9,6.48748375]
[1732728258578,9.22146546,238.91,238.9,8.57918375]
[1732728258774,9.22146546,238.98,238.9,6.48748375]
[1732728258976,18.87146283,238.97,238.92,2.0915]
[1732728259280,16.78026283,238.96,238.92,2.0915]
[1732728259485,16.78026283,238.95,238.93,2.0914]
[1732728259684,16.78026283,238.94,238.93,2.0914]
[1732728259884,16.78026283,238.94,238.9,6.48748375]
[1732728260089,9.22146546,238.93,238.91,2.0916]
[1732728260289,9.22146546,238.92,238.9,6.48748375]
[1732728260590,9.22146546,238.91,238.89,8.84748375]
[1732728260884,8.57868375,238.97,238.89,8.84748375]
[1732728261091,16.81331435,238.96,238.89,8.84748375]
[1732728261387,16.81331435,238.95,238.89,8.84748375]
[1732728261583,16.81331435,238.94,238.91,2.0916]
[1732728261885,16.81331435,238.93,238.91,2.0916]
[1732728262086,16.81331435,238.92,238.91,2.0916]
[1732728262488,16.81331435,238.92,238.91,8.57908375]
[1732728262679,9.25288023,238.92,238.91,8.57908375]
[1732728262878,8.12618,239.05,238.91,8.57908375]
[1732728263081,6.48748375,239.03,238.95,6.48748375]
[1732728263286,6.48748375,239.03,238.95,8.84748375]
[1732728263287,7.46935045,239.02,238.95,8.84748375]
[1732728263988,2.0909,239.0,238.95,4.4513]
[1732728264188,7.46935045,238.99,238.95,4.4513]
[1732728264387,7.46935045,238.99,238.96,2.0912]
[1732728265086,7.46935045,238.98,238.97,2.0911]
[1732728266888,7.46935045,238.98,238.96,2.0912]
[1732728267188,7.46935045,238.97,238.96,2.0912]
[1732728267588,7.46935045,238.97,238.95,4.4512]
[1732728267893,7.46935045,238.96,238.95,4.4512]
[1732728268285,6.48748375,239.01,238.95,4.4512]
[1732728268491,7.46764355,239.0,238.95,4.4512]
[1732728268691,7.46764355,238.99,238.95,4.4512]
[1732728268907,7.46764355,238.98,238.95,4.4512]
[1732728269093,8.57828375,239.01,238.95,4.4512]
[1732728269293,7.46695865,239.0,238.95,4.4512]
[1732728269497,8.57828375,239.01,238.95,4.4512]
[1732728269498,7.46695865,238.99,238.95,4.4512]
[1732728269692,8.57828375,239.01,238.95,4.4512]
[1732728269893,7.46632704,239.0,238.96,2.0912]
[1732728270093,7.46632704,238.99,238.96,2.0912]
[1732728270294,8.57828375,239.01,238.95,2.36]
[1732728270494,7.4661228,239.0,238.95,2.36]
[1732728270697,7.4661228,238.99,238.95,2.36]
[1732728270897,8.57828375,239.01,238.95,2.36]
[1732728271091,7.46582277,239.0,238.95,2.36]
[1732728271298,7.46582277,238.99,238.95,2.36]
[1732728271495,6.48748375,239.03,238.95,2.36]
[1732728271689,7.46540031,239.02,238.95,2.36]
[1732728271994,7.46540031,239.01,238.95,2.36]
[1732728272193,7.46540031,239.0,238.96,2.0912]
[1732728272401,7.46540031,238.99,238.96,2.0912]
[1732728272700,2.0907,239.02,238.96,2.0912]
[1732728272991,16.35071267,239.01,238.96,2.0912]
[1732728273193,16.35071267,239.0,238.97,2.0911]
[1732728273390,16.35071267,238.99,238.97,2.0911]
[1732728273598,2.0907,239.02,238.97,2.0911]
[1732728273797,16.34988425,239.01,238.97,2.0911]
[1732728273999,16.34988425,239.0,238.99,2.0909]
[1732728274195,6.48748375,239.06,238.99,2.0909]
[1732728274499,2.0907,239.03,238.97,2.091]
[1732728274698,22.83807815,239.02,238.97,2.091]
[1732728274894,16.3505944,239.01,238.97,2.091]
[1732728275093,8.8888336,239.0,238.97,2.091]
[1732728275295,8.57818375,239.02,238.97,2.091]
[1732728275493,16.35208154,239.01,238.98,2.091]
[1732728275694,8.88967731,239.0,238.98,2.091]
[1732728275890,8.57818375,239.02,238.98,2.091]
[1732728276103,16.35284299,239.01,238.98,2.091]
[1732728276301,16.35284299,239.0,238.98,2.091]
[1732728276603,16.35284299,238.99,238.98,2.091]
[1732728278501,16.35284299,238.99,238.96,2.0911]
[1732728278693,8.89007261,238.98,238.95,2.36]
[1732728278893,2.0907,239.02,238.95,2.36]
[1732728279095,16.35543823,239.01,238.95,2.36]
[1732728279303,16.35543823,239.0,238.95,2.36]
[1732728279496,16.35543823,238.99,238.95,2.36]
[1732728279700,8.89148494,238.98,238.95,2.36]
[1732728280003,6.48748375,239.03,238.95,2.36]
[1732728280304,16.35464165,239.02,238.95,2.36]
[1732728280502,7.46327683,239.01,238.95,2.36]
[1732728280703,16.35464165,239.01,238.95,2.36]
[1732728281003,18.44554165,239.0,238.95,2.36]
[1732728281205,16.35464165,238.99,238.95,2.36]
[1732728281406,8.89136482,238.98,238.95,2.36]
[1732728281605,2.0909,239.0,238.95,2.36]
[1732728281803,2.091,238.98,238.95,2.36]
[1732728282006,16.36315089,238.97,238.93,2.0914]
[1732728282207,16.36315089,238.97,238.91,2.36]
[1732728282208,8.89579168,238.96,238.91,2.36]
[1732728282413,8.88323369,238.95,238.92,2.0915]
[1732728282605,8.88122832,238.94,238.92,2.0915]
[1732728282804,8.57868375,238.97,238.92,2.0915]
[1732728283004,16.33190918,238.96,238.92,2.0915]
[1732728283202,16.33190918,238.95,238.92,2.0915]
[1732728283403,16.33190918,238.94,238.92,2.0915]
[1732728283605,8.87875977,238.93,238.86,2.631]
[1732728283903,16.32837915,238.92,238.87,2.36]
[1732728284104,7.4514177,238.91,238.86,2.36]
[1732728284312,2.0914,238.94,238.89,2.0918]
[1732728284611,8.8782232,238.93,238.89,2.0918]
[1732728284812,8.8784868,238.92,238.89,8.57928375]
[1732728285008,6.48748375,238.97,238.89,8.57928375]
[1732728285009,8.57858375,238.97,238.91,2.0916]
[1732728285210,16.33221031,238.96,238.89,6.48748375]
[1732728285509,16.33221031,238.95,238.89,6.48748375]
[1732728285703,16.33221031,238.94,238.91,2.0916]
[1732728285908,8.8789694,238.93,238.89,6.48748375]
[1732728286107,8.87864296,238.92,238.88,2.0919]
[1732728286308,6.48748375,238.95,238.88,2.0919]
[1732728286505,16.33064895,238.94,238.87,8.84748375]
[1732728286710,16.33064895,238.93,238.87,8.84748375]
[1732728286910,8.87817576,238.92,238.87,8.84748375]
[1732728287110,6.48748375,238.95,238.87,2.36]
[1732728287404,2.0915,238.93,238.89,2.0918]
[1732728287606,8.87723263,238.92,238.89,2.0918]
[1732728287811,2.0915,238.93,238.87,2.36]
[1732728288117,8.87618989,238.92,238.88,2.0918]
[1732728288318,8.87618989,238.91,238.88,2.0918]
[1732728288507,8.87618989,238.9,238.88,2.0918]
[1732728288712,2.0915,238.93,238.88,2.0918]
[1732728289010,9.22250905,238.92,238.88,2.0918]
[1732728289206,9.22250905,238.91,238.88,2.0918]
[1732728289418,9.22250905,238.9,238.88,2.0918]
[1732728289612,2.0915,238.93,238.88,2.0918]
[1732728289811,9.22226465,238.92,238.88,2.0918]
[1732728290015,9.22226465,238.91,238.88,2.0918]
[1732728290213,9.22226465,238.92,238.88,2.0918]
[1732728290413,9.22226465,238.91,238.88,2.0918]
[1732728290613,9.22226465,238.92,238.88,2.0918]
[1732728290818,9.22226465,238.91,238.88,2.0918]
[1732728291018,9.22226465,238.9,238.88,2.0918]
[1732728291319,2.0915,238.93,238.88,2.0918]
[1732728291517,9.22233985,238.92,238.88,2.0918]
[1732728291814,9.22233985,238.91,238.88,2.0918]
[1732728292020,9.22233985,238.9,238.79,2.5688]
[1732728292217,6.48748375,238.89,238.8,8.84748375]
[1732728292714,2.092,238.88,238.83,2.0923]
[1732728292913,6.48748375,238.89,238.77,32.64]
[1732728293218,6.48748375,238.89,238.8,6.48748375]
[1732728294012,2.0919,238.88,238.8,6.48748375]
[1732728294912,2.0919,238.88,238.83,2.0923]
[1732728296616,9.22233985,238.87,238.83,2.0923]
[1732728297222,2.0919,238.88,238.83,2.0923]
[1732728300328,9.9808604,238.87,238.83,2.0923]
[1732728300625,9.9808604,238.86,238.83,2.0923]
[1732728300818,9.9808604,238.85,238.83,2.0923]
[1732728301022,9.9808604,238.84,238.83,2.0923]
[1732728306429,9.9808604,238.84,238.82,2.0924]
[1732728306735,9.9808604,238.83,238.82,2.0924]
[1732728307136,9.9808604,238.83,238.8,8.58008375]
[1732728307436,6.48748375,238.86,238.79,8.84748375]
[1732728307437,9.9808604,238.82,238.79,8.84748375]
[1732728307637,9.9808604,238.81,238.79,8.84748375]
[1732728307829,8.57958375,238.86,238.8,2.0926]
[1732728308029,9.96063391,238.85,238.79,8.84748375]
[1732728308230,9.96063391,238.84,238.79,8.84748375]
[1732728308436,9.96063391,238.83,238.79,8.84748375]
[1732728308636,8.57958375,238.86,238.8,2.0926]
[1732728308637,9.96063391,238.82,238.8,2.0926]
[1732728308935,9.96063391,238.81,238.79,8.84748375]
[1732728309235,2.0922,238.85,238.8,2.0926]
[1732728309536,9.95232617,238.84,238.8,2.0926]
[1732728309735,9.95232617,238.83,238.8,2.0926]
[1732728309933,9.95232617,238.82,238.79,2.36]
[1732728310232,9.95232617,238.81,238.79,2.36]
[1732728310431,13.38419822,238.8,238.79,2.36]
[1732728310631,13.38419822,238.8,238.77,3.42889149]
[1732728310832,13.38419822,238.79,238.77,3.42889149]
[1732728311028,13.38419822,238.78,238.77,3.42889149]
[1732728311231,3.43187205,238.78,238.77,3.42889149]
[1732728311635,6.48748375,238.85,238.77,3.42889149]
[1732728311636,2.0924,238.83,238.78,2.0928]
[1732728312133,9.9229555,238.82,238.78,2.0928]
[1732728312332,9.9229555,238.81,238.78,2.0928]
[1732728312936,9.9229555,238.8,238.78,2.0928]
[1732728313136,9.9229555,238.79,238.78,2.0928]
[1732728314633,3.37635537,238.79,238.78,2.0928]
[1732728314834,13.29931087,238.79,238.78,2.0928]
[1732728315039,9.9229555,238.79,238.78,2.0928]
[1732728315239,3.375797,238.79,238.78,2.0928]
[1732728315830,13.2987525,238.79,238.78,2.0928]
[1732728316240,3.375797,238.79,238.78,2.0928]
[1732728316730,13.2987525,238.79,238.78,2.0928]
[1732728316937,3.375797,238.79,238.78,2.0928]
[1732728317337,13.2987525,238.79,238.78,2.0928]
[1732728317941,3.375797,238.79,238.78,2.0928]
[1732728318438,3.4183643,238.79,238.78,8.58028375]
[1732728318644,13.3413198,238.79,238.78,8.58028375]
[1732728319136,3.4183643,238.79,238.78,8.58028375]
[1732728319639,13.3413198,238.79,238.78,8.58028375]
[1732728320243,3.4183643,238.79,238.78,8.58028375]
[1732728320639,3.4183643,238.79,238.78,6.48748375]
[1732728321044,13.3413198,238.79,238.78,8.58028375]
[1732728321240,3.4183643,238.79,238.78,8.58028375]
[1732728321738,2.092,238.87,238.78,6.48748375]
[1732728321945,17.82607858,238.86,238.81,2.0925]
[1732728322140,9.87170569,238.85,238.81,2.0925]
[1732728322645,9.87170569,238.84,238.81,2.0925]
[1732728323035,9.87170569,238.83,238.81,2.0923]
[1732728323242,9.87170569,238.82,238.81,2.0923]
[1732728323639,9.87170569,238.86,238.81,2.0923]
[1732728323844,9.87170569,238.85,238.81,2.0923]
[1732728324148,9.87170569,238.84,238.81,2.0923]
[1732728324346,9.87170569,238.83,238.81,2.0923]
[1732728324547,9.87170569,238.82,238.81,2.0923]
[1732728324744,9.87170569,238.85,238.81,6.48748375]
[1732728324949,9.87170569,238.84,238.81,6.48748375]
[1732728325152,9.87170569,238.87,238.81,6.48748375]
[1732728325649,7.97357635,238.86,238.81,6.48748375]
[1732728325850,9.87170569,238.85,238.83,6.48748375]
[1732728326052,9.87170569,238.84,238.83,6.48748375]
[1732728326347,9.87170569,238.88,238.83,8.84748375]
[1732728326555,9.87170569,238.87,238.86,6.48748375]
[1732728326745,3.41812498,238.87,238.86,8.57938375]
[1732728327341,13.28983067,238.87,238.86,8.57938375]
[1732728327751,4.7367,238.92,238.87,2.0918]
[1732728328051,18.14822454,238.91,238.87,2.0918]
[1732728328250,18.14822454,238.9,238.87,2.0918]
[1732728328549,18.14822454,238.89,238.87,2.0918]
[1732728328751,9.89059432,238.88,238.87,2.0918]
[1732728329253,18.14833411,238.88,238.87,2.0918]
[1732728330248,9.89059432,238.88,238.87,2.0918]
[1732728330650,18.15392969,238.88,238.87,2.0918]
[1732728331059,9.89059432,238.88,238.87,2.0918]
[1732728334959,13.55498375,238.98,238.91,2.0913]
[1732728335160,17.88444689,238.97,238.9,8.84748375]
[1732728335465,17.88444689,238.96,238.92,2.0913]
[1732728335664,17.88444689,238.95,238.93,2.36]
[1732728335865,9.89166273,238.94,238.93,2.36]
[1732728336562,9.89166273,238.97,238.93,2.36]
[1732728336763,17.88507604,238.96,238.93,4.4512]
[1732728336963,9.89166273,238.95,238.93,4.4512]
[1732728337167,9.89166273,238.94,238.93,4.4512]
[1732728339765,9.89166273,238.94,238.93,10.93868375]
[1732728341775,2.70008,239.0,238.95,2.0911]
[1732728341972,9.88330383,238.99,238.95,6.48748375]
[1732728342265,9.88330383,238.98,238.93,8.84748375]
[1732728342475,9.88330383,238.97,238.95,2.091]
[1732728342772,9.88330383,238.96,238.95,2.091]
[1732728343174,9.87982933,238.96,238.95,2.091]
[1732728343472,2.69998,239.0,238.95,2.091]
[1732728343669,9.8777074,238.99,238.96,2.091]
[1732728343868,9.8777074,238.98,238.93,8.84748375]
[1732728344167,0.60938,239.0,238.93,8.84748375]
[1732728344168,9.8777074,238.97,238.93,8.84748375]
[1732728344370,0.60938,239.0,238.95,8.57848375]
[1732728344672,9.87800251,238.99,238.95,8.57848375]
[1732728344866,9.87800251,238.98,238.97,2.0909]
[1732728345265,0.60938,239.0,238.97,6.48748375]
[1732728345567,0.60938,239.0,238.99,8.57818375]
[1732728345773,10.48460512,239.0,238.99,10.93818375]
[1732728345971,0.60938,239.0,238.99,10.93818375]
[1732728346174,0.60938,239.0,238.99,4.4507]
[1732728346979,0.60938,239.0,238.99,2.36]
[1732728347873,10.47410391,239.0,238.99,2.36]
[1732728348068,10.47410391,239.0,238.95,8.84748375]
[1732728348272,10.47410391,239.0,238.95,4.451]
[1732728348480,9.86472391,238.99,238.95,4.451]
[1732728348775,0.60938,239.0,238.95,4.451]
[1732728348977,9.85470867,238.99,238.96,2.0909]
[1732728349173,0.60938,239.0,238.96,2.0909]
[1732728350471,2.0905,239.02,238.96,2.0909]
[1732728350673,9.84763227,239.01,238.97,6.48748375]
[1732728350875,7.2753,239.04,238.99,2.0907]
[1732728351076,9.84675294,239.03,238.99,2.0907]
[1732728351273,5.1849,239.04,238.97,6.48748375]
[1732728351475,9.84557136,239.03,238.97,6.48748375]
[1732728351678,5.1849,239.04,238.97,6.48748375]